{"text_format":"1","workbook":"xlsx","n_sheets":6,"sheets":["Notice Explicative ","Partie administrative ","Investissement","Soutien de programme","Dépenses de Personnels","Global"],"not_rendered":{"charts":0,"images":3,"macros":0,"external_links":1,"defined_names":16,"comments":0,"pivot_tables":0},"unopened":[],"bounds":{"document_bytes":16777216,"sheet_cells":100000,"rows_first":2000,"rows_last":500,"rows_between":2000,"halvings":0,"cell_chars":16384,"cell_head_chars":4096},"cells_cut":0,"cells_raw":0,"read":"whole","date_system":"1900"}

{"sheet":"Notice Explicative ","index":0,"n_rows":21,"n_cols":3,"rows_kept":21,"cut":false,"hidden":false,"merged":[[12,2,12,7],[20,1,20,7],[22,1,22,7],[33,1,33,7],[1,1,1,7],[3,1,3,7],[4,1,4,7],[7,2,7,7],[9,2,9,7],[10,2,10,7]]}
[]
[null,"DOSSIER FINANCIER"]
[]
[null,"REMARQUES GENERALES "]
[]
[null,"Le dossier financier est constitué :"]
[]
[null,"1°)","de feuilles à renseigner : par nature puis par poste de dépenses (investissement, soutien de programme, dépenses de personnel)."]
[]
[null,null,"Pour chaque poste de dépense, en colonne B, le lien avec le projet et le mode de calcul devront être explicités."]
[null,null,"Il devra être précisé, pour l'ensemble des postes de dépenses, à quel partenaire ils appartiennent, et ceux pour lesquels une subvention est sollicitée et ceux pour lesquels un co-financement est envisagé et/ou acquis (y compris les fonds propres disponibles et leurs origines). Le(s) co-financeur(s) devra(devront) être clairement identifié(s). "]
[]
[null,"2°)","d'un tableau récapitulatif (feuillet \"global\") reprenant l'ensemble des demandes par nature de dépenses pour le projet. \nDans ce tableau, chaque équipe bénéficiaire devra préciser, pour les dépenses de soutien de programme, les montants correspondants aux dépenses effectives en HT ou en TTC au regard des conditions d'assujettissement et de collecte de la TVA. Pour les dépenses de personnel, les dépenses sont \"Net de TVA\"."]
[null,"Nous attirons l'attention sur les points suivants :"]
[null,null,"> toutes les dépenses devront pouvoir être certifiées acquittées par l'établissement gestionnaire,"]
[null,null,"> l'annualisation des budgets nécessite de bien définir par année le montant qui sera acquitté "]
[null,null,"au titre de la même année. A ce titre, les montants précisés seront ceux qui appelleront les "]
[null,null,"crédits de paiement pour la région,"]
[null,null,"> seules les dépenses éligibles doivent être mentionnées."]
[]
[null,"A noter que pour les équipes ayant des engagements en cours avec la Région sur d’autres opérations s'inscrivant dans la logique du projet demandé, le versement du premier acompte nécessitera le solde de l'opération antérieure."]

{"sheet":"Partie administrative ","index":1,"n_rows":22,"n_cols":27,"rows_kept":22,"cut":false,"hidden":false,"merged":[[20,1,20,3],[20,4,20,7],[21,1,21,6],[47,2,48,8],[18,1,18,2],[15,1,15,7],[16,1,16,7],[17,1,17,2],[17,3,17,7],[19,1,19,2],[19,3,19,4],[19,5,19,6],[11,1,11,2],[11,3,11,7],[12,1,12,2],[12,3,12,7],[13,1,14,4],[13,5,14,7],[4,0,4,8],[6,0,6,8],[9,1,9,2],[9,3,9,7],[10,1,10,2],[10,3,10,7]]}
[]
[]
[]
[]
["DOSSIER FINANCIER"]
[]
["STIMulE - Volet \"Recherche Partenariale\""]
[]
[null,null,null,null,null,null,null,null,null,null,null,null,null,null,null,null,null,null,null,null,null,null,null,null,null,null,"TTC"]
[null,"TITRE DU PROJET : "]
[null,"COORDONNNATEUR "]
[null,"LABORATOIRE DE RECHERCHE / SERVICE :"]
[null,"ETABLISSEMENT GESTIONNAIRE : "]
[null,"\nNOM et Prénom du représentant légal de l’établissement gestionnaire\n",null,null,null,"\nSignature du représentant légal"]
[]
[null,"Personne en charge du suivi administratif et financier du projet :"]
[]
[null,"Coordonnées :"]
[null,"Liste des partenaires"]
[null,"COUT TOTAL ",null,"€",null,"AIDE DEMANDEE",null,"€"]
[null,"Date de début et de fin d'exécution ",null,null,"du xx/xx/20xx au xx/xx/20xx"]
[null,"Les dépenses sont présentées en HT ou TTC ?"]

{"sheet":"Investissement","index":2,"n_rows":25,"n_cols":9,"rows_kept":25,"cut":false,"hidden":false,"merged":[[3,0,3,7],[7,0,7,8],[10,2,10,4],[11,6,11,8],[35,2,36,8]]}
[]
[]
[]
["DEPENSES D' INVESTISSEMENT"]
[]
[]
[]
["Attention : les projets doivent se réaliser sur maximum 36 mois effectif et la programmation s’entend en année civile – les années 1, 2 et 3 sont à renseigner au prorata du nombre de mois sur lequel se déroule le projet."]
[]
[]
[null,null,"Ventilation du montant par année"]
[null,null,"Année 1","Année 2","Année 3",null,"Recettes"]
["Intitulé de la dépense","Justification *","du xx/xx20xx au xx/xx/20xx","du xx/xx20xx au xx/xx/20xx","du xx/xx20xx au xx/xx/20xx","Coût Total","Région","Autres :","Précisez"]
[null,null,null,null,null,{"$f":"C14+D14+E14","v":0}]
[null,null,null,null,null,{"$f":"C15+D15+E15","v":0}]
[null,null,null,null,null,0]
[null,null,null,null,null,0]
[null,null,null,null,null,0]
[null,null,null,null,null,0]
[null,null,null,null,null,0]
[null,null,null,null,null,0]
[null,null,null,null,null,0]
[null,null,null,null,null,0]
[null,"TOTAL",{"$f":"SUM(C14:C23)","v":0},0,0,0,0,0]
["* Précisez par exemple : le lien avec le projet, le nombre de mois d'utilisation sur la durée du projet, la date d'acquisition, …"]

{"sheet":"Soutien de programme","index":3,"n_rows":33,"n_cols":9,"rows_kept":33,"cut":false,"hidden":false,"merged":[[7,0,7,8],[2,0,2,7],[11,2,11,4],[12,6,12,8],[41,2,42,8]]}
[]
[]
["DEPENSES DE SOUTIEN DE PROGRAMME"]
[]
[]
[]
[]
["Attention : les projets doivent se réaliser sur maximum 36 mois effectif et la programmation s’entend en année civile – les années 1, 2 et 3 sont à renseigner au prorata du nombre de mois sur lequel se déroule le projet."]
[]
[]
[]
[null,null,"Ventilation du montant par année"]
[null,null,"Année 1","Année 2","Année 3",null,"Recettes"]
["Intitulé de la dépense","Justification *","du xx/xx20xx au xx/xx/20xx","du xx/xx20xx au xx/xx/20xx","du xx/xx20xx au xx/xx/20xx","Coût Total","Région","Autres :","Précisez"]
[null,null,null,null,null,{"$f":"C15+D15+E15","v":0}]
[null,null,null,null,null,{"$f":"C16+D16+E16","v":0}]
[null,null,null,null,null,0]
[null,null,null,null,null,0]
[null,null,null,null,null,0]
[null,null,null,null,null,0]
[null,null,null,null,null,0]
[null,null,null,null,null,0]
[null,null,null,null,null,0]
[null,null,null,null,null,0]
[null,null,null,null,null,0]
[null,null,null,null,null,0]
[null,null,null,null,null,0]
[null,null,null,null,null,0]
[null,null,null,null,null,0]
[null,"TOTAL",{"$f":"SUM(C15:C29)","v":0},{"$f":"SUM(D15:D29)","v":0},0,0,{"$f":"SUM(G15:G29)","v":0},{"$f":"SUM(H15:H29)","v":0}]
["* Précisez par exemple : le lien avec le projet, la clé de répartition utilisée, le nombre d'unité nécessaire, …"]
["                                        pour les frais de missions : précisez le prix d'un trajet, d'une nuité, le nombre/personne, …"]
["                                       pour les études et analyses, les noms et qualités des prestataires doivent être précisés"]

{"sheet":"Dépenses de Personnels","index":4,"n_rows":27,"n_cols":9,"rows_kept":27,"cut":false,"hidden":false,"merged":[[12,2,12,4],[13,6,13,8],[36,2,37,8],[1,1,2,1],[1,2,2,5],[3,0,3,7],[7,0,7,8],[9,0,9,7]]}
[]
[]
[]
["DEPENSES DE PERSONNELS"]
[]
[]
[]
["Attention : les projets doivent se réaliser sur maximum 36 mois effectif et la programmation s’entend en année civile – les années 1, 2 et 3 sont à renseigner au prorata du nombre de mois sur lequel se déroule le projet."]
[]
["Sont éligibles au titre de l'assiette subventionnable, les contrats CDD spécifiquement affectés à tout ou partie du projet. \n\nSont éligibles au titre de la valorisation, les autres contrats CDI et personnels statutaires. Les dépenses de personnels valorisés sont exclues de l’assiette subventionnable et doivent figurer au titre de contre-partie justifiée sur la part « fonds propres »."]
[]
[]
[null,null,"Ventilation du montant par année"]
[null,null,"Année 1","Année 2","Année 3",null,"Recettes"]
["Intitulé de la dépense","Justification *","du xx/xx20xx au xx/xx/20xx","du xx/xx20xx au xx/xx/20xx","du xx/xx20xx au xx/xx/20xx","Coût Total","Région","Autres :","Précisez"]
[null,null,null,null,null,{"$f":"C16+D16+E16","v":0}]
[null,null,null,null,null,{"$f":"C17+D17+E17","v":0}]
[null,null,null,null,null,0]
[null,null,null,null,null,0]
[null,null,null,null,null,0]
[null,null,null,null,null,0]
[null,null,null,null,null,0]
[null,null,null,null,null,0]
[null,null,null,null,null,0]
[null,null,null,null,null,0]
[null,"TOTAL",{"$f":"SUM(C16:C25)","v":0},0,0,0,0,0]
["* Précisez par exemple : le taux d'emploi sur le projet, le type de contrat CDD/CDI/Titulaire, le nombre de mois travaillé, …"]

{"sheet":"Global","index":5,"n_rows":52,"n_cols":5,"rows_kept":52,"cut":false,"hidden":false,"merged":[[4,0,4,4],[62,1,63,4],[10,3,10,4],[50,0,51,0],[50,1,51,1],[50,2,51,2]]}
[]
[]
[]
[]
["PLAN DE FINANCEMENT PREVISIONNEL DU PROJET "]
[]
[]
["Tableau récapitulatif des dépenses et des ressources prévisionnelles *"]
["* Les montants des dépenses et des ressources reprises dans ce tableau récapitulatif sont renseignés automatiquement"]
[]
["Nature et intitulé des postes de dépenses","Coût Total","Dépenses subventionnables","Recettes"]
["Investissement",{"$f":"Investissement!F24","v":0},{"$f":"SUM(C13:C22)","v":0},{"$f":"Investissement!G13","v":"Région"},{"$f":"Investissement!G24","v":0}]
[{"$f":"Investissement!A14","v":0},{"$f":"Investissement!F14","v":0},null,{"$f":"Investissement!H13","v":"Autres :"},{"$f":"Investissement!H24","v":0}]
[{"$f":"Investissement!A15","v":0},{"$f":"Investissement!F15","v":0}]
[{"$f":"Investissement!A16","v":0},{"$f":"Investissement!F16","v":0}]
[{"$f":"Investissement!A17","v":0},{"$f":"Investissement!F17","v":0}]
[{"$f":"Investissement!A18","v":0},{"$f":"Investissement!F18","v":0}]
[{"$f":"Investissement!A19","v":0},{"$f":"Investissement!F19","v":0}]
[{"$f":"Investissement!A20","v":0},{"$f":"Investissement!F20","v":0}]
[{"$f":"Investissement!A21","v":0},{"$f":"Investissement!F21","v":0}]
[{"$f":"Investissement!A22","v":0},{"$f":"Investissement!F22","v":0}]
[{"$f":"Investissement!A23","v":0},{"$f":"Investissement!F23","v":0}]
["Fonctionnement",{"$f":"B24+B40","v":0},{"$f":"C24+C40","v":0},{"$f":"'Soutien de programme'!G14","v":"Région"},{"$f":"'Soutien de programme'!G30+'Dépenses de Personnels'!G26","v":0}]
["Soutien de programme",{"$f":"'Soutien de programme'!F30","v":0},{"$f":"SUM(C25:C39)","v":0},{"$f":"'Soutien de programme'!H14","v":"Autres :"},{"$f":"'Soutien de programme'!H30+'Dépenses de Personnels'!H26","v":0}]
[{"$f":"'Soutien de programme'!A15","v":0},{"$f":"'Soutien de programme'!F15","v":0}]
[{"$f":"'Soutien de programme'!A16","v":0},{"$f":"'Soutien de programme'!F16","v":0}]
[{"$f":"'Soutien de programme'!A17","v":0},{"$f":"'Soutien de programme'!F17","v":0}]
[{"$f":"'Soutien de programme'!A18","v":0},{"$f":"'Soutien de programme'!F18","v":0}]
[{"$f":"'Soutien de programme'!A19","v":0},{"$f":"'Soutien de programme'!F19","v":0}]
[{"$f":"'Soutien de programme'!A20","v":0},{"$f":"'Soutien de programme'!F20","v":0}]
[{"$f":"'Soutien de programme'!A21","v":0},{"$f":"'Soutien de programme'!F21","v":0}]
[{"$f":"'Soutien de programme'!A22","v":0},{"$f":"'Soutien de programme'!F22","v":0}]
[{"$f":"'Soutien de programme'!A23","v":0},{"$f":"'Soutien de programme'!F23","v":0}]
[{"$f":"'Soutien de programme'!A24","v":0},{"$f":"'Soutien de programme'!F24","v":0}]
[{"$f":"'Soutien de programme'!A25","v":0},{"$f":"'Soutien de programme'!F25","v":0}]
[{"$f":"'Soutien de programme'!A26","v":0},{"$f":"'Soutien de programme'!F26","v":0}]
[{"$f":"'Soutien de programme'!A27","v":0},{"$f":"'Soutien de programme'!F27","v":0}]
[{"$f":"'Soutien de programme'!A28","v":0},{"$f":"'Soutien de programme'!F28","v":0}]
[{"$f":"'Soutien de programme'!A29","v":0},{"$f":"'Soutien de programme'!F29","v":0}]
["Dépenses de personnels",{"$f":"'Dépenses de Personnels'!F26","v":0},{"$f":"SUM(C41:C50)","v":0}]
[{"$f":"'Dépenses de Personnels'!A16","v":0},{"$f":"'Dépenses de Personnels'!F16","v":0}]
[{"$f":"'Dépenses de Personnels'!A17","v":0},{"$f":"'Dépenses de Personnels'!F17","v":0}]
[{"$f":"'Dépenses de Personnels'!A18","v":0},{"$f":"'Dépenses de Personnels'!F18","v":0}]
[{"$f":"'Dépenses de Personnels'!A19","v":0},{"$f":"'Dépenses de Personnels'!F19","v":0}]
[{"$f":"'Dépenses de Personnels'!A20","v":0},{"$f":"'Dépenses de Personnels'!F20","v":0}]
[{"$f":"'Dépenses de Personnels'!A21","v":0},{"$f":"'Dépenses de Personnels'!F21","v":0}]
[{"$f":"'Dépenses de Personnels'!A22","v":0},{"$f":"'Dépenses de Personnels'!F22","v":0}]
[{"$f":"'Dépenses de Personnels'!A23","v":0},{"$f":"'Dépenses de Personnels'!F23","v":0}]
[{"$f":"'Dépenses de Personnels'!A24","v":0},{"$f":"'Dépenses de Personnels'!F24","v":0}]
[{"$f":"'Dépenses de Personnels'!A25","v":0},{"$f":"'Dépenses de Personnels'!F25","v":0}]
["TOTAL",{"$f":"B12+B23","v":0},{"$f":"C12+C23","v":0},{"$f":"D23","v":"Région"},{"$f":"E12+E23","v":0}]
[null,null,null,{"$f":"D24","v":"Autres :"},{"$f":"E13+E24","v":0}]